bitfinex/quotes_SOLUSD_20251231
["timestamp","ask_amount","ask_price","bid_price","bid_amount"]
[1767196896855,11.1066895,125.82,125.79,0.71079166]
[1767196897745,11.81288545,125.83,125.79,0.71079166]
[1767196898057,3.86536399,125.83,125.8,0.71079166]
[1767196899448,11.81278115,125.83,125.78,3.15881558]
[1767196899653,11.81278115,125.83,125.79,0.71079166]
[1767196900058,3.15881558,125.82,125.79,0.71079166]
[1767196900878,8.65396557,125.83,125.79,0.71079166]
[1767196901053,3.15881558,125.82,125.79,0.71079166]
[1767196901942,8.65396557,125.83,125.79,0.71079166]
[1767196902144,11.81278115,125.83,125.79,0.71079166]
[1767196903556,11.81278115,125.83,125.79,3.86960724]
[1767196903957,11.81278115,125.83,125.79,0.71079166]
[1767196904137,5.95778478,125.82,125.79,0.71079166]
[1767196904340,11.81278115,125.83,125.79,0.71079166]
[1767196904650,5.95790637,125.82,125.79,0.71079166]
[1767196904971,11.81278115,125.83,125.79,0.71079166]
[1767196905173,5.95790637,125.82,125.79,0.71079166]
[1767196905465,3.15881558,125.82,125.79,0.71079166]
[1767196906465,3.15881558,125.81,125.78,0.71079166]
[1767196906668,3.86536399,125.81,125.78,0.71079166]
[1767196908395,3.15881558,125.79,125.76,0.71079166]
[1767196908663,3.15881558,125.78,125.74,0.71079166]
[1767196908968,3.86536399,125.78,125.74,0.71079166]
[1767196909141,3.15881558,125.77,125.74,0.71079166]
[1767196911550,3.15881558,125.76,125.74,0.71079166]
[1767196913273,3.15881558,125.76,125.73,0.67045433]
[1767196913671,3.15881558,125.74,125.71,0.67045433]
[1767196914055,3.15881558,125.75,125.71,0.67045433]
[1767196915275,3.86887866,125.75,125.71,0.67045433]
[1767196915571,3.86887866,125.74,125.71,0.67045433]
[1767196916152,3.15881558,125.74,125.71,0.67045433]
[1767196916353,3.86887866,125.73,125.7,14.52]
[1767196916574,3.86887866,125.73,125.69,3.82926991]
[1767196916780,3.86887866,125.73,125.7,0.67045433]
[1767196917276,8.66202656,125.76,125.7,3.15881558]
[1767196917490,3.86887866,125.76,125.73,0.67045433]
[1767196918467,11.8205386,125.76,125.73,0.67045433]
[1767196919486,11.8205386,125.76,125.72,0.67045433]
[1767196921488,3.86887866,125.75,125.71,3.15881558]
[1767196921798,3.86887866,125.75,125.72,0.67045433]
[1767196923586,3.15881558,125.74,125.72,0.67045433]
[1767196923885,3.86887866,125.75,125.72,0.67045433]
[1767196925790,3.15881558,125.74,125.72,0.67045433]
[1767196926390,0.71006308,125.72,125.66,0.67045433]
[1767196926587,0.71006308,125.72,125.68,0.67045433]
[1767196926894,3.15881558,125.72,125.69,0.67045433]
[1767196927294,0.71006308,125.73,125.69,0.67045433]
[1767196927492,3.86887866,125.73,125.69,3.82926991]
[1767196929196,23.20260599,125.75,125.7,0.67045433]
[1767196929392,3.15881558,125.74,125.71,0.67045433]
[1767196929697,3.86887866,125.74,125.71,0.67045433]
[1767196929869,0.71006308,125.74,125.71,0.67045433]
[1767196930066,3.86887866,125.74,125.71,0.67045433]
[1767196930272,11.82193008,125.74,125.71,0.67045433]
[1767196930479,13.60856335,125.74,125.71,0.67045433]
[1767196930908,8.6631145,125.74,125.71,0.67045433]
[1767196931088,13.60856335,125.74,125.71,0.67045433]
[1767196932788,4.94544885,125.73,125.71,0.67045433]
[1767196935401,8.6631145,125.74,125.71,0.67045433]
[1767196935602,4.94544885,125.73,125.71,0.67045433]
[1767196937897,5.65551193,125.75,125.71,0.67045433]
[1767196938494,13.60780001,125.75,125.71,0.67045433]
[1767196938696,7.95183801,125.76,125.73,0.67045433]
[1767196938881,13.56348358,125.76,125.73,0.67045433]
[1767196939081,0.66619672,125.76,125.72,5.6488921]
[1767196939286,137.09129235,125.78,125.73,0.70344325]
[1767196939502,0.66619672,125.77,125.74,0.70344325]
[1767196939682,117.215,125.78,125.74,0.70344325]
[1767196939683,103.34119672,125.78,125.74,0.70344325]
[1767196939883,4.94544885,125.77,125.74,0.70344325]
[1767196940207,111.29179411,125.78,125.74,0.70344325]
[1767196940512,4.94544885,125.76,125.72,0.70344325]
[1767196940714,4.94544885,125.76,125.73,0.70344325]
[1767196941902,13.56302396,125.77,125.73,0.70344325]
[1767196942106,4.94544885,125.76,125.73,0.70344325]
[1767196942511,0.66619672,125.77,125.74,0.6891291]
[1767196942714,13.56268145,125.77,125.74,0.6891291]
[1767196943031,0.70957803,125.82,125.77,0.6891291]
[1767196943318,0.70957803,125.82,125.78,5.63457795]
[1767196943490,15.34957803,125.84,125.79,4.94544885]
[1767196943690,20.29502688,125.84,125.8,0.6891291]
[1767196943919,5.75502688,125.84,125.8,0.6891291]
[1767196944206,0.70957803,125.83,125.8,0.6891291]
[1767196944421,5.65502688,125.83,125.8,0.6891291]
[1767196945805,5.65502688,125.82,125.78,5.63457795]
[1767196945986,5.65502688,125.82,125.79,0.6891291]
[1767196946511,4.94544885,125.81,125.77,5.63457795]
[1767196946714,4.94544885,125.81,125.78,0.6891291]
[1767196949409,4.94544885,125.79,125.76,0.6891291]
[1767196949817,4.94544885,125.78,125.76,0.6891291]
[1767196950886,4.94544885,125.78,125.74,5.63457795]
[1767196951089,5.65502688,125.78,125.74,5.63457795]
[1767196951304,7.94969203,125.8,125.74,0.6891291]
[1767196951305,5.65502688,125.77,125.74,0.6891291]
[1767196951507,5.65502688,125.77,125.73,0.6891291]
[1767196951884,4.94544885,125.76,125.73,0.6891291]
[1767196953791,4.94544885,125.76,125.71,7.95467887]
[1767196953792,5.65502688,125.76,125.71,0.6891291]
[1767196953998,5.65502688,125.76,125.72,0.6891291]
[1767196955120,0.70957803,125.76,125.72,0.6891291]
[1767196955298,5.65502688,125.76,125.72,0.6891291]
[1767196957438,4.94544885,125.75,125.72,0.6891291]
[1767196957737,4.94544885,125.73,125.69,14.54]
[1767196957927,4.94544885,125.72,125.69,15.2291291]
[1767196958418,4.94544885,125.72,125.69,0.6891291]
[1767196958608,12.89969476,125.72,125.69,0.6891291]
[1767196958804,0.70957803,125.72,125.69,0.6891291]
[1767196959025,4.94544885,125.71,125.69,0.6891291]
[1767196959205,0.70957803,125.75,125.69,4.94544885]
[1767196959404,5.65502688,125.72,125.69,0.6891291]
[1767196961934,22.49316049,125.74,125.7,4.94544885]
[1767196962123,0.70957803,125.72,125.69,0.6891291]
[1767196962314,5.65502688,125.72,125.67,0.6891291]
[1767196962633,5.65502688,125.72,125.68,0.6891291]
[1767196962808,5.65502688,125.72,125.68,5.63457795]
[1767196963005,5.65502688,125.72,125.68,0.6891291]
[1767196964030,4.94544885,125.72,125.68,0.6891291]
[1767196964237,5.65502688,125.72,125.68,0.6891291]
[1767196964532,0.70957803,125.72,125.68,0.6891291]
[1767196964710,5.65502688,125.72,125.68,0.6891291]
[1767196966836,0.70957803,125.72,125.68,0.6891291]
[1767196967139,5.65502688,125.7,125.66,15.2291291]
[1767196967328,5.65502688,125.7,125.67,0.6891291]
[1767196968127,0.70957803,125.69,125.66,4.94544885]
[1767196968461,5.65502688,125.68,125.65,15.4291291]
[1767196968736,4.94544885,125.68,125.65,0.8891291]
[1767196968938,4.94544885,125.67,125.65,0.8891291]
[1767196969123,0.70957803,125.68,125.65,0.8891291]
[1767196969124,5.65502688,125.68,125.65,0.8891291]
[1767196969635,0.70957803,125.68,125.65,0.8891291]
[1767196969840,5.65502688,125.68,125.65,0.8891291]
[1767196971940,5.65502688,125.68,125.65,0.2]
[1767196971941,4.94544885,125.67,125.65,0.2]
[1767196972136,5.61291219,125.67,125.65,0.2]
[1767196973128,0.66746334,125.67,125.65,0.2]
[1767196973326,5.61291219,125.67,125.65,0.2]
[1767196973533,0.66746334,125.67,125.65,0.2]
[1767196973737,5.61291219,125.67,125.65,0.2]
[1767196975241,0.66746334,125.67,125.65,0.2]
[1767196975445,5.61291219,125.67,125.65,0.2]
[1767196975650,0.66746334,125.67,125.65,0.2]
[1767196976162,8.62381605,125.69,125.65,0.90780654]
[1767196976325,5.61291219,125.68,125.65,0.90780654]
[1767196976652,4.94544885,125.68,125.65,0.90780654]
[1767196977448,5.61291219,125.68,125.65,0.90780654]
[1767196977848,7.95614817,125.69,125.66,0.70780654]
[1767196978057,13.56906036,125.69,125.66,0.70780654]
[1767196978552,0.66746334,125.68,125.65,0.90780654]
[1767196978927,5.61291219,125.68,125.65,0.90780654]
[1767196979139,4.94544885,125.68,125.65,0.90780654]
[1767196979642,4.94544885,125.71,125.68,0.70780654]
[1767196979855,5.61291219,125.71,125.68,0.70780654]
[1767196980727,5.61291219,125.69,125.65,0.2]
[1767196980933,4.94544885,125.68,125.65,0.90780654]
[1767196981342,4.94544885,125.68,125.65,0.2]
[1767196981343,4.94544885,125.67,125.65,0.2]
[1767196981751,4.94544885,125.66,125.65,0.2]
[1767196982157,0.66746334,125.67,125.65,0.2]
[1767196982355,5.61291219,125.7,125.67,0.70780654]
[1767196982659,0.66746334,125.71,125.68,0.70780654]
[1767196982965,13.56709609,125.72,125.68,5.65325539]
[1767196983170,13.56709609,125.72,125.68,0.70780654]
[1767196983477,13.56709609,125.72,125.66,0.70780654]
[1767196983478,4.94544885,125.69,125.66,0.70780654]
[1767196983831,5.61291219,125.68,125.65,14.74]
[1767196984252,5.61291219,125.68,125.65,0.2]
[1767196984552,0.66746334,125.67,125.65,0.2]
[1767196984944,5.61291219,125.68,125.65,0.2]
[1767196985547,5.61291219,125.68,125.65,0.90780654]
[1767196985939,7.95574525,125.7,125.65,5.85325539]
[1767196986139,5.61291219,125.69,125.66,0.70780654]
[1767196986458,5.61291219,125.68,125.65,0.90780654]
[1767196986658,0.66746334,125.68,125.65,0.90780654]
[1767196987342,5.61291219,125.69,125.65,5.85325539]
[1767196988230,0.66746334,125.69,125.65,5.85325539]
[1767196988667,5.61291219,125.69,125.65,5.85325539]
[1767196988873,5.61291219,125.69,125.66,0.70780654]
[1767196989434,0.66746334,125.69,125.66,0.70780654]
[1767196989856,7.95574525,125.7,125.66,4.94544885]
[1767196990068,13.56803119,125.71,125.67,0.70780654]
[1767196990235,0.66746334,125.7,125.67,0.70780654]
[1767196993447,0.66746334,125.69,125.65,3.36662964]
[1767196993652,3.83409298,125.69,125.65,0.90780654]
[1767196993856,3.16662964,125.68,125.65,0.90780654]
[1767196994052,3.83409298,125.69,125.65,0.90780654]
[1767196994267,0.66746334,125.69,125.65,0.90780654]
[1767196994461,3.83409298,125.69,125.65,0.90780654]
[1767196995368,0.66746334,125.68,125.65,0.90780654]
[1767196996157,11.79039529,125.69,125.65,0.90780654]
[1767196996478,0.66746334,125.68,125.65,0.90780654]
[1767196997471,0.60306025,125.62,125.58,0.2]
[1767196997644,4.15171527,125.57,125.56,0.90780654]
[1767196997847,7.31834491,125.57,125.56,0.90780654]
[1767196998072,7.31834491,125.57,125.56,0.2]
[1767196999174,7.31834491,125.57,125.55,0.90780654]
[1767196999359,3.16662964,125.56,125.54,0.66607503]
[1767196999562,3.16662964,125.55,125.54,0.66607503]
[1767196999766,3.16662964,125.56,125.54,0.66607503]
[1767197002379,7.31834491,125.57,125.54,0.66607503]
[1767197002782,3.16662964,125.56,125.54,0.66607503]
[1767197005155,3.16662964,125.57,125.54,0.66607503]
[1767197006160,8.56638531,125.58,125.54,0.66607503]
[1767197006381,3.16662964,125.57,125.54,0.66607503]
[1767197007979,3.16662964,125.56,125.54,0.66607503]
[1767197008177,3.16662964,125.55,125.53,0.67924915]
[1767197008881,3.16662964,125.55,125.52,0.2]
[1767197009081,3.16662964,125.54,125.52,0.2]
[1767197009264,3.16662964,125.53,125.52,0.2]
[1767197009463,3.16662964,125.53,125.51,0.67924915]
[1767197011670,0.60306025,125.54,125.51,0.67924915]
[1767197011863,7.96509825,125.55,125.51,0.67924915]
[1767197012088,3.16662964,125.55,125.52,0.67924915]
[1767197012690,3.16662964,125.54,125.51,0.67924915]
[1767197013003,3.16662964,125.54,125.49,11.13515334]
[1767197013178,3.16662964,125.54,125.49,7.9685237]
[1767197013532,3.16662964,125.54,125.5,3.16662964]
[1767197014082,3.16662964,125.55,125.51,3.16662964]
[1767197014275,3.16662964,125.55,125.5,11.13460761]
[1767197014276,3.16662964,125.54,125.5,11.13460761]
[1767197014681,0.71745756,125.55,125.5,11.13460761]
[1767197014893,3.8840872,125.55,125.5,11.13460761]
[1767197015192,3.8840872,125.55,125.51,0.67924915]
[1767197015594,3.16662964,125.54,125.51,0.67924915]
[1767197017394,3.8840872,125.53,125.5,0.67924915]
[1767197018397,3.16662964,125.52,125.5,0.67924915]
[1767197018584,3.16662964,125.52,125.48,0.67924915]
[1767197019086,3.8840872,125.53,125.49,0.67924915]
[1767197019301,8.68281241,125.55,125.5,0.67924915]
[1767197019481,3.16662964,125.54,125.5,0.67924915]
[1767197019676,3.16662964,125.53,125.5,0.67924915]
[1767197019888,0.71745756,125.54,125.5,0.67924915]
[1767197020088,3.16662964,125.53,125.5,0.67924915]
[1767197021305,3.16662964,125.52,125.5,0.67924915]
[1767197021579,0.71745756,125.53,125.5,0.67924915]
[1767197021906,7.9661742,125.54,125.48,0.67924915]
[1767197021907,3.16662964,125.51,125.48,0.67924915]
[1767197022094,3.16662964,125.5,125.48,0.67924915]
[1767197023203,3.8840872,125.51,125.48,0.67924915]
[1767197023593,0.71745756,125.51,125.48,0.67924915]
[1767197023808,3.8840872,125.51,125.48,0.67924915]
[1767197025119,3.16662964,125.5,125.48,0.67924915]
[1767197025278,0.71745756,125.51,125.48,0.67924915]
[1767197025481,3.8840872,125.51,125.48,0.67924915]
[1767197025696,3.16662964,125.5,125.47,0.87924915]
[1767197026006,3.16662964,125.48,125.45,15.43924915]
[1767197026185,3.16662964,125.48,125.45,0.87924915]
[1767197027204,3.16662964,125.47,125.45,0.87924915]
[1767197027407,3.16662964,125.46,125.44,6.32292926]
[1767197028551,3.16662964,125.46,125.44,7.00217841]
[1767197029211,0.71745756,125.5,125.44,7.00217841]
[1767197029515,3.16662964,125.47,125.44,7.00217841]
[1767197029885,3.16662964,125.47,125.45,0.67924915]
[1767197030104,3.16662964,125.47,125.44,6.32292926]
[1767197030285,3.16662964,125.47,125.44,7.00217841]
[1767197030912,3.16662964,125.45,125.44,6.32292926]
[1767197031882,0.72321226,125.48,125.44,6.98023101]
[1767197032098,0.72321226,125.49,125.46,0.65730175]
[1767197032309,3.8898419,125.49,125.46,0.65730175]
[1767197032514,0.72321226,125.49,125.46,0.65730175]
[1767197032717,3.8898419,125.49,125.46,0.65730175]
[1767197032912,0.72321226,125.51,125.46,0.65730175]
[1767197033112,3.16662964,125.5,125.47,0.65730175]
[1767197033309,3.16662964,125.49,125.45,0.65730175]
[1767197033511,3.16662964,125.48,125.45,0.65730175]
[1767197035021,3.8898419,125.49,125.45,11.13789297]
[1767197035226,3.8898419,125.49,125.46,0.65730175]
[1767197035919,7.96775636,125.51,125.46,0.65730175]
[1767197036119,3.8898419,125.5,125.46,0.65730175]
[1767197037021,3.16662964,125.49,125.46,0.65730175]
[1767197037903,0.72321226,125.53,125.49,0.65730175]
[1767197038219,19.91456331,125.54,125.49,0.65730175]
[1767197038220,3.8898419,125.52,125.49,0.65730175]
[1767197038921,3.16662964,125.52,125.49,0.65730175]
[1767197039629,3.16662964,125.54,125.51,0.65730175]
[1767197041006,3.8898419,125.54,125.51,0.65730175]
[1767197042821,3.16662964,125.53,125.51,0.65730175]
[1767197044016,0.72321226,125.54,125.51,0.65730175]
[1767197044219,3.16662964,125.53,125.51,0.65730175]
[1767197044524,3.8898419,125.54,125.51,0.65730175]
[1767197045639,113.28773626,125.56,125.51,3.16662964]
[1767197045938,3.16662964,125.53,125.5,0.65730175]
[1767197046124,3.8898419,125.54,125.5,3.16662964]
[1767197046305,3.8898419,125.54,125.51,0.65730175]
[1767197046508,0.72321226,125.54,125.51,0.65730175]
[1767197046708,3.8898419,125.54,125.51,0.65730175]
[1767197051728,3.16662964,125.53,125.5,14.56]
[1767197052029,3.16662964,125.53,125.5,15.21730175]
[1767197052231,3.8898419,125.53,125.5,15.21730175]
[1767197052432,3.8898419,125.52,125.5,14.56]
[1767197053029,3.8898419,125.52,125.49,0.65730175]
[1767197053337,0.72321226,125.52,125.49,0.65730175]
[1767197053508,0.72321226,125.52,125.49,3.82393139]
[1767197053708,3.8898419,125.52,125.49,0.65730175]
[1767197054317,0.72321226,125.52,125.49,0.65730175]
[1767197054520,0.72321226,125.54,125.5,4.96173492]
[1767197054716,0.72321226,125.54,125.51,0.65730175]
[1767197054916,4.96173492,125.55,125.51,0.65730175]
[1767197054917,5.68494718,125.55,125.51,5.61903667]
[1767197055837,5.68494718,125.55,125.51,0.65730175]
[1767197056128,13.65004158,125.55,125.51,0.65730175]
[1767197056522,5.68494718,125.55,125.51,0.65730175]
[1767197057640,0.72321226,125.55,125.51,0.65730175]
[1767197057818,5.68494718,125.55,125.51,0.65730175]
[1767197059236,0.72321226,125.55,125.51,0.65730175]
[1767197059438,12.1173848,125.59,125.53,5.66587552]
[1767197059627,0.71157926,125.58,125.54,5.66587552]
[1767197059936,0.71157926,125.58,125.54,0.7041406]
[1767197059937,0.71157926,125.57,125.54,0.7041406]
[1767197061419,5.67331418,125.57,125.54,0.7041406]
[1767197062923,4.96173492,125.59,125.55,0.70057422]
[1767197063124,5.6866975,125.58,125.55,0.70057422]
[1767197063842,0.72496258,125.58,125.55,0.70057422]
[1767197064046,5.6866975,125.58,125.55,0.70057422]
[1767197064227,0.72496258,125.58,125.55,0.70057422]
[1767197064432,5.6866975,125.58,125.55,0.70057422]
[1767197064634,4.96173492,125.58,125.55,0.70057422]
[1767197065247,5.6866975,125.58,125.55,0.70057422]
[1767197065441,4.96173492,125.57,125.55,0.70057422]
[1767197066067,5.6866975,125.56,125.52,15.26057422]
[1767197066246,4.96173492,125.55,125.52,15.26057422]
[1767197066449,4.96173492,125.54,125.52,15.26057422]
[1767197066631,0.72496258,125.54,125.52,14.56]
[1767197066944,5.6866975,125.54,125.52,14.56]
[1767197068650,4.96173492,125.53,125.52,14.56]
[1767197068850,5.6866975,125.53,125.5,0.70057422]
[1767197070453,104.6,125.57,125.53,0.70057422]
[1767197070658,118.25058193,125.57,125.54,0.70057422]
[1767197070957,0.72496258,125.56,125.53,5.66230914]
[1767197071133,0.72496258,125.56,125.53,0.70057422]
[1767197071839,105.32496258,125.57,125.53,5.66230914]
[1767197072039,118.25044917,125.57,125.53,0.70057422]
[1767197072239,4.96173492,125.56,125.53,0.70057422]
[1767197072450,5.6866975,125.56,125.53,0.70057422]
[1767197073333,0.72496258,125.57,125.53,5.66230914]
[1767197073577,5.6866975,125.57,125.53,0.70057422]
[1767197073748,13.65065982,125.57,125.53,0.70057422]
[1767197073957,0.72496258,125.56,125.53,0.70057422]
[1767197075661,4.96173492,125.55,125.5,0.70057422]
[1767197075848,5.6866975,125.54,125.5,15.26057422]
[1767197076248,4.96173492,125.53,125.5,15.26057422]
[1767197076751,5.6866975,125.54,125.5,15.26057422]
[1767197077262,5.6866975,125.53,125.5,14.56]
[1767197077567,5.6866975,125.53,125.5,15.26057422]
[1767197078363,4.96173492,125.53,125.5,15.26057422]
[1767197078532,5.6866975,125.53,125.5,15.26057422]
[1767197079367,0.72496258,125.52,125.5,14.56]
[1767197079766,13.65302335,125.53,125.49,0.70057422]
[1767197080478,5.6866975,125.53,125.5,0.70057422]
[1767197081684,5.6866975,125.52,125.48,15.26057422]
[1767197081974,5.6866975,125.52,125.49,0.70057422]
[1767197082146,0.72496258,125.52,125.49,0.70057422]
[1767197082345,5.6866975,125.52,125.49,0.70057422]
[1767197082545,4.96173492,125.52,125.49,0.70057422]
[1767197083478,5.6866975,125.52,125.49,0.70057422]
[1767197084866,0.72496258,125.51,125.46,0.70057422]
[1767197085070,5.6866975,125.51,125.48,0.70057422]
[1767197085943,27.87824057,125.55,125.48,5.66230914]
[1767197086145,5.6866975,125.52,125.48,5.66230914]
[1767197088939,5.6866975,125.51,125.48,0.70057422]
[1767197089266,0.72496258,125.51,125.48,0.70057422]
[1767197090656,0.72496258,125.51,125.48,5.66230914]
[1767197092072,0.72496258,125.51,125.49,4.96173492]
[1767197092469,0.72496258,125.51,125.48,0.70057422]
[1767197092672,0.6972925,125.5,125.47,14.56]
[1767197092971,5.65902742,125.48,125.44,7.04790841]
[1767197093152,0.6972925,125.47,125.44,7.04790841]
[1767197093479,0.6972925,125.47,125.44,12.00964333]
[1767197093977,0.6972925,125.48,125.45,0.72497915]
[1767197095072,5.65902742,125.48,125.45,0.72497915]
[1767197096974,0.6972925,125.52,125.48,0.72497915]
[1767197097173,0.6972925,125.52,125.48,5.68671407]
[1767197097174,0.6972925,125.51,125.48,5.68671407]
[1767197098482,13.62670395,125.51,125.48,0.72497915]
[1767197098656,8.66496903,125.51,125.48,0.72497915]
[1767197098857,13.62670395,125.51,125.48,0.72497915]
[1767197099255,5.65902742,125.51,125.48,0.72497915]
[1767197099672,0.6972925,125.51,125.48,5.68671407]
[1767197100971,0.6972925,125.51,125.48,0.72497915]
[1767197101178,8.66480798,125.51,125.48,0.72497915]
[1767197101355,0.6972925,125.55,125.51,0.72497915]
[1767197101680,0.6972925,125.54,125.51,0.72497915]
[1767197101871,4.96173492,125.53,125.49,5.68671407]
[1767197102062,0.6972925,125.52,125.49,5.68671407]
[1767197102484,0.6972925,125.53,125.49,5.68671407]
[1767197102853,0.6972925,125.53,125.5,0.72497915]
[1767197103054,0.6972925,125.51,125.48,15.28497915]
[1767197103456,0.6972925,125.51,125.48,20.24671407]
[1767197103851,5.65902742,125.5,125.46,62.72497915]
[1767197104183,0.6972925,125.5,125.47,0.72497915]
[1767197104480,15.2572925,125.52,125.49,4.96173492]
[1767197104669,0.6972925,125.51,125.48,4.96173492]
[1767197104869,14.56,125.52,125.48,5.68671407]
[1767197105175,7.96626745,125.53,125.48,5.68671407]
[1767197105176,0.6972925,125.53,125.5,5.68671407]
[1767197105378,0.6972925,125.56,125.52,5.68671407]
[1767197105556,5.65902742,125.56,125.52,5.68671407]
[1767197105753,0.6972925,125.55,125.51,5.68671407]
[1767197105984,5.65902742,125.55,125.51,0.72497915]
[1767197106370,5.65902742,125.54,125.51,0.72497915]
[1767197106768,5.65902742,125.53,125.5,14.56]
[1767197106971,7.96605876,125.54,125.46,7.97036532]
[1767197107161,5.65902742,125.51,125.46,20.24671407]
[1767197107486,5.65902742,125.51,125.47,0.72497915]
[1767197108486,5.65902742,125.5,125.47,0.72497915]
[1767197109174,0.6972925,125.5,125.47,0.72497915]
[1767197109376,0.6972925,125.51,125.47,5.68671407]
[1767197109690,5.65902742,125.51,125.47,5.68671407]
[1767197109890,5.65902742,125.49,125.45,5.68671407]
[1767197110990,4.96173492,125.47,125.44,6.32292926]
[1767197111288,0.6972925,125.47,125.44,6.32292926]
[1767197111478,0.6972925,125.47,125.44,7.04790841]
[1767197111681,5.65902742,125.48,125.44,7.04790841]
[1767197112408,0.6972925,125.46,125.44,6.32292926]
[1767197112562,5.65902742,125.46,125.44,6.32292926]
[1767197113188,13.62970976,125.46,125.44,6.32292926]
[1767197114665,11.84736895,125.46,125.44,6.32292926]
[1767197114870,7.97068234,125.46,125.44,5.59792926]
[1767197115183,7.97068234,125.46,125.41,0.2]
[1767197115184,3.17939411,125.45,125.41,0.2]
[1767197115384,3.17939411,125.44,125.41,0.92497915]
[1767197116192,3.17939411,125.43,125.41,0.2]
[1767197117091,23.10606396,125.46,125.41,0.2]
[1767197117092,3.17939411,125.42,125.41,0.2]
[1767197117290,3.17939411,125.42,125.4,0.2]
[1767197117291,3.17939411,125.41,125.4,0.2]
[1767197118283,34.49052265,125.44,125.4,0.2]
[1767197118632,3.17939411,125.41,125.39,0.2]
[1767197118906,8.35013837,125.43,125.37,0.72497915]
[1767197118907,3.17939411,125.4,125.37,0.72497915]
[1767197120494,7.57738251,125.4,125.37,0.72497915]
[1767197120699,7.97410617,125.41,125.37,0.72497915]
[1767197120895,7.97410617,125.41,125.37,7.57738251]
[1767197121191,15.55148868,125.41,125.38,0.66860293]
[1767197121572,7.97410617,125.41,125.38,0.66860293]
[1767197121774,15.55148868,125.41,125.38,0.66860293]
[1767197122193,15.55148868,125.41,125.36,7.57738251]
[1767197122393,15.55148868,125.41,125.37,0.6856023]
[1767197122585,7.57738251,125.4,125.37,0.6856023]
[1767197123307,42.84210091,125.43,125.37,0.6856023]
[1767197123308,7.97341302,125.42,125.37,0.6856023]
[1767197123504,7.57738251,125.41,125.38,0.6856023]
[1767197124206,7.57738251,125.4,125.38,0.6856023]
[1767197124782,7.97374586,125.42,125.38,0.6856023]
[1767197124988,7.57738251,125.41,125.38,0.6856023]
[1767197125388,7.57738251,125.39,125.36,0.6856023]
[1767197125588,7.57738251,125.4,125.37,0.6856023]
[1767197127211,104.6,125.42,125.37,7.57738251]
[1767197127407,104.6,125.42,125.35,0.2]
[1767197127408,120.1506987,125.42,125.39,0.6856023]
[1767197127710,7.57738251,125.41,125.39,0.6856023]
[1767197128204,120.1506987,125.42,125.39,0.6856023]
[1767197128995,7.57738251,125.41,125.39,0.6856023]
[1767197129992,7.57738251,125.4,125.37,0.6856023]
[1767197130596,112.57331619,125.42,125.36,0.6856023]
[1767197130794,120.07107762,125.42,125.37,7.57738251]
[1767197130992,120.07107762,125.42,125.38,0.6856023]
[1767197131192,120.74850907,125.42,125.38,0.6856023]
[1767197131706,113.17112656,125.42,125.38,0.6856023]
[1767197131898,120.74850907,125.42,125.38,0.6856023]
[1767197133409,7.57738251,125.41,125.38,0.6856023]
[1767197133709,8.25481396,125.41,125.38,0.6856023]
[1767197134990,0.67743145,125.41,125.38,0.6856023]
[1767197135313,8.25481396,125.4,125.36,8.26298481]
[1767197135890,8.25481396,125.4,125.35,8.46298481]
[1767197135891,7.57738251,125.39,125.35,8.46298481]
[1767197136090,8.25481396,125.39,125.35,8.46298481]
[1767197136814,8.25481396,125.39,125.35,7.77738251]
[1767197136999,8.25481396,125.39,125.36,0.6856023]
[1767197137315,8.25481396,125.37,125.35,0.2]
[1767197138320,16.23129553,125.37,125.35,0.2]
[1767197139530,7.57738251,125.36,125.35,0.2]
[1767197140403,8.25481396,125.36,125.35,0.2]
[1767197140814,0.67743145,125.36,125.35,0.2]
[1767197141117,8.25481396,125.36,125.35,0.05243145]
[1767197141493,16.23184012,125.36,125.32,0.8856023]
[1767197141809,7.57738251,125.35,125.32,0.8856023]
[1767197142615,3.18487954,125.35,125.32,0.8856023]
[1767197142817,3.76231099,125.34,125.32,0.2]
[1767197144332,3.18487954,125.34,125.32,0.2]
[1767197144515,0.57743145,125.35,125.32,0.2]
[1767197144704,3.76231099,125.35,125.32,0.2]
[1767197144913,3.18487954,125.38,125.34,3.87048184]
[1767197145113,3.18487954,125.38,125.35,0.6856023]
[1767197145519,3.76231099,125.39,125.35,0.6856023]
[1767197146138,11.73742862,125.39,125.35,0.6856023]
[1767197146447,3.18487954,125.38,125.35,0.6856023]
[1767197146738,3.18487954,125.37,125.34,0.6856023]
[1767197146916,3.76231099,125.37,125.33,0.6856023]
[1767197147738,42.49291171,125.39,125.33,0.6856023]
[1767197147944,0.57743145,125.38,125.34,0.6856023]
[1767197148251,3.18487954,125.37,125.34,0.6856023]
[1767197149131,8.5536814,125.38,125.34,0.6856023]
[1767197149334,11.73856094,125.38,125.34,3.87048184]
[1767197149531,3.76231099,125.38,125.34,3.18487954]
[1767197149836,3.76231099,125.38,125.35,0.6856023]
[1767197151739,22.5553564,125.39,125.35,3.18487954]
[1767197151928,25.74023594,125.39,125.36,0.67446546]
[1767197152534,26.31766739,125.39,125.36,0.67446546]
[1767197152944,11.15948162,125.4,125.36,0.67446546]
[1767197153246,11.73691307,125.4,125.36,0.67446546]